fUSD/lending_fUSD_20250222
["ID","MTS","AMOUNT","RATE_DAILY","PERIOD"]
[354115883,1740255047415,-500.0,0.00012027,2]
[354115884,1740255047424,-500.0,0.00012027,2]
[354115885,1740255047433,-780.38,0.00012027,2]
[354115886,1740255047443,-181.72771251,0.00012095,2]
[354115887,1740255047453,-2000.0,0.000121,2]
[354115888,1740255047462,-2000.0,0.000121,2]
[354115889,1740255047472,-2000.0,0.000121,2]
[354115890,1740255047481,-2009.9176,0.000121,2]
[354115891,1740255047491,-637.92,0.00012109,2]
[354115892,1740255047502,-500.0,0.00012109,2]
[354115893,1740255047512,-500.0,0.00012109,2]
[354115894,1740255047523,-500.0,0.00012109,2]
[354115895,1740255047532,-780.38,0.00012109,2]
[354115896,1740255047541,-1000.0,0.00012132,2]
[354115897,1740255047550,-1183.0,0.00012149,2]
[354115898,1740255047559,-801.53,0.00012149,2]
[354115899,1740255047569,-637.92,0.00012191,2]
[354115900,1740255047579,-500.0,0.00012191,2]
[354115901,1740255047588,-338.77863247,0.00012191,2]
[354115902,1740255047598,-500.0,0.00012191,2]
[354115903,1740255047608,-780.38,0.00012191,2]
[354115904,1740255047617,-164.82,0.00012195,2]
[354115905,1740255047627,-248.0,0.00012249,3]
[354115906,1740255047637,-637.92,0.00012273,2]
[354115907,1740255047646,-500.0,0.00012273,2]
[354115908,1740255047655,-500.0,0.00012273,2]
[354115909,1740255047665,-780.38,0.00012273,2]
[354115910,1740255047674,-1000.0,0.00012328,2]
[354115911,1740255047683,-206.74936636,0.00012329,2]
[354115912,1740255047693,-151.0,0.00012329,2]
[354115913,1740255047702,-151.0,0.00012329,2]
[354115914,1740255047711,-151.0,0.00012329,2]
[354115915,1740255047721,-151.0,0.00012329,2]
[354115916,1740255047730,-151.0,0.00012329,2]
[354115917,1740255047739,-173.860644,0.00012329,2]
[354115918,1740255047749,-173.860644,0.00012329,2]
[354115919,1740255047758,-173.860644,0.00012329,2]
[354115920,1740255047767,-173.860644,0.00012329,2]
[354115921,1740255047776,-151.0,0.00012329,2]
[354115922,1740255047786,-151.370162,0.00012329,2]
[354115923,1740255047795,-151.0,0.00012329,2]
[354115924,1740255047804,-151.0,0.00012329,2]
[354115925,1740255047815,-151.0,0.00012329,2]
[354115926,1740255047824,-151.0,0.00012329,2]
[354115927,1740255047833,-151.0,0.00012329,2]
[354115928,1740255047842,-151.0,0.00012329,2]
[354115929,1740255047851,-151.0,0.00012329,2]
[354115930,1740255047861,-151.642632,0.00012329,2]
[354115931,1740255047871,-323.790324,0.00012329,2]
[354115932,1740255047880,-323.790324,0.00012329,2]
[354115933,1740255047889,-323.790324,0.00012329,2]
[354115934,1740255047898,-323.790324,0.00012329,2]
[354115935,1740255047907,-151.0,0.00012329,2]
[354115936,1740255047917,-151.0,0.00012329,2]
[354115937,1740255047926,-151.0,0.00012329,2]
[354115938,1740255047936,-151.0,0.00012329,2]
[354115939,1740255047945,-151.0,0.00012329,2]
[354115940,1740255047955,-151.0,0.00012329,2]
[354115941,1740255047964,-151.0,0.00012329,2]
[354115942,1740255047973,-151.0,0.00012329,2]
[354115943,1740255047984,-151.0,0.00012329,2]
[354115944,1740255047994,-151.0,0.00012329,2]
[354115945,1740255048004,-151.0,0.00012329,2]
[354115946,1740255048014,-151.0,0.00012329,2]
[354115947,1740255048024,-151.0,0.00012329,2]
[354115948,1740255048034,-151.0,0.00012329,2]
[354115949,1740255048043,-151.0,0.00012329,2]
[354115950,1740255048052,-151.0,0.00012329,2]
[354115951,1740255048063,-151.0,0.00012329,2]
[354115952,1740255048073,-151.0,0.00012329,2]
[354115953,1740255048082,-151.0,0.00012329,2]
[354115954,1740255048092,-151.0,0.00012329,2]
[354115955,1740255048102,-151.0,0.00012329,2]
[354115956,1740255048112,-151.0,0.00012329,2]
[354115957,1740255048122,-213.410118,0.00012329,2]
[354115958,1740255048132,-213.410118,0.00012329,2]
[354115959,1740255048143,-213.410118,0.00012329,2]
[354115960,1740255048153,-213.410118,0.00012329,2]
[354115961,1740255048162,-151.0,0.00012329,2]
[354115962,1740255048172,-151.0,0.00012329,2]
[354115963,1740255048181,-151.0,0.00012329,2]
[354115964,1740255048191,-151.0,0.00012329,2]
[354115965,1740255048202,-151.0,0.00012329,2]
[354115966,1740255048212,-151.0,0.00012329,2]
[354115967,1740255048221,-152.441547,0.00012329,2]
[354115968,1740255048231,-151.0,0.00012329,2]
[354115969,1740255048241,-151.0,0.00012329,2]
[354115970,1740255048252,-151.0,0.00012329,2]
[354115971,1740255048262,-151.0,0.00012329,2]
[354115972,1740255048273,-151.0,0.00012329,2]
[354115973,1740255048282,-151.0,0.00012329,2]
[354115974,1740255048292,-151.0,0.00012329,2]
[354115975,1740255048302,-295.230823,0.00012329,2]
[354115976,1740255048313,-151.0,0.00012329,2]
[354115977,1740255048323,-151.0,0.00012329,2]
[354115978,1740255048333,-151.0,0.00012329,2]
[354115979,1740255048343,-151.0,0.00012329,2]
[354115980,1740255048352,-151.0,0.00012329,2]
[354115981,1740255048362,-151.0,0.00012329,2]
[354115982,1740255048373,-409.503675,0.00012329,2]
[354115983,1740255048382,-409.503675,0.00012329,2]
[354115984,1740255048392,-151.0,0.00012329,2]
[354115985,1740255048402,-151.0,0.00012329,2]
[354115986,1740255048411,-409.503675,0.00012329,2]
[354115987,1740255048421,-409.503675,0.00012329,2]
[354115988,1740255048431,-151.0,0.00012329,2]
[354115989,1740255048440,-151.0,0.00012329,2]
[354115990,1740255048450,-151.0,0.00012329,2]
[354115991,1740255048460,-151.0,0.00012329,2]
[354115992,1740255048470,-151.0,0.00012329,2]
[354115993,1740255048480,-151.0,0.00012329,2]
[354115994,1740255048489,-151.0,0.00012329,2]
[354115995,1740255048499,-151.0,0.00012329,2]
[354115996,1740255048508,-151.0,0.00012329,2]
[354115997,1740255048519,-151.0,0.00012329,2]
[354115998,1740255048529,-151.0,0.00012329,2]
[354115999,1740255048538,-151.0,0.00012329,2]
[354116000,1740255048548,-151.0,0.00012329,2]
[354116001,1740255048557,-151.0,0.00012329,2]
[354116002,1740255048565,-151.0,0.00012329,2]
[354116003,1740255048575,-151.0,0.00012329,2]
[354116004,1740255048584,-180.05816,0.00012329,2]
[354116005,1740255048594,-151.0,0.00012329,2]
[354116006,1740255048604,-151.0,0.00012329,2]
[354116007,1740255048614,-151.0,0.00012329,2]
[354116008,1740255048624,-151.0,0.00012329,2]
[354116009,1740255048634,-151.0,0.00012329,2]
[354116010,1740255048644,-151.0,0.00012329,2]
[354116011,1740255048653,-151.944697,0.00012329,2]
[354116012,1740255048662,-151.0,0.00012329,2]
[354116013,1740255048671,-151.282361,0.00012329,2]
[354116014,1740255048681,-151.62172,0.00012329,2]
[354116015,1740255048690,-151.0,0.00012329,2]
[354116016,1740255048700,-151.0,0.00012329,2]
[354116017,1740255048710,-337.474748,0.00012329,2]
[354116018,1740255048719,-337.474748,0.00012329,2]
[354116019,1740255048729,-337.474748,0.00012329,2]
[354116020,1740255048739,-337.474748,0.00012329,2]
[354116021,1740255048749,-190.131182,0.00012329,2]
[354116022,1740255048758,-190.131182,0.00012329,2]
[354116023,1740255048767,-190.131182,0.00012329,2]
[354116024,1740255048777,-190.131182,0.00012329,2]
[354116025,1740255048787,-151.0,0.00012329,2]
[354116026,1740255048797,-151.0,0.00012329,2]
[354116027,1740255048807,-182.381664,0.00012329,2]
[354116028,1740255048816,-182.381664,0.00012329,2]
[354116029,1740255048826,-182.381664,0.00012329,2]
[354116030,1740255048835,-182.381664,0.00012329,2]
[354116031,1740255048846,-232.106477,0.00012329,2]
[354116032,1740255048856,-232.106477,0.00012329,2]
[354116033,1740255048865,-232.106477,0.00012329,2]
[354116034,1740255048875,-232.106477,0.00012329,2]
[354116035,1740255048885,-151.0,0.00012329,2]
[354116036,1740255048895,-151.0,0.00012329,2]
[354116037,1740255048904,-183.174854,0.00012329,2]
[354116038,1740255048914,-183.174854,0.00012329,2]
[354116039,1740255048924,-183.174854,0.00012329,2]
[354116040,1740255048934,-183.174854,0.00012329,2]
[354116041,1740255048944,-151.0,0.00012329,2]
[354116042,1740255048953,-151.0,0.00012329,2]
[354116043,1740255048963,-151.0,0.00012329,2]
[354116044,1740255048974,-201.023471,0.00012329,2]
[354116045,1740255048987,-201.023471,0.00012329,2]
[354116046,1740255048996,-201.023471,0.00012329,2]
[354116047,1740255049008,-201.023471,0.00012329,2]
[354116048,1740255049018,-151.0,0.00012329,2]
[354116049,1740255049028,-151.0,0.00012329,2]
[354116050,1740255049039,-151.0,0.00012329,2]
[354116051,1740255049049,-151.0,0.00012329,2]
[354116052,1740255049059,-3607.742892,0.00012329,2]
[354116053,1740255049069,-151.0,0.00012329,2]
[354116054,1740255049079,-3607.742892,0.00012329,2]
[354116055,1740255049089,-151.0,0.00012329,2]
[354116056,1740255049099,-3607.742892,0.00012329,2]
[354116057,1740255049109,-151.0,0.00012329,2]
[354116058,1740255049119,-3607.742892,0.00012329,2]
[354116059,1740255049129,-227.915983,0.00012329,2]
[354116060,1740255049140,-151.0,0.00012329,2]
[354116061,1740255049187,-151.0,0.00012329,2]
[354116062,1740255049197,-151.0,0.00012329,2]
[354116063,1740255049207,-151.688301,0.00012329,2]
[354116064,1740255049217,-151.0,0.00012329,2]
[354116065,1740255049227,-151.0,0.00012329,2]
[354116066,1740255049237,-151.0,0.00012329,2]
[354116067,1740255049247,-151.308349,0.00012329,2]
[354116068,1740255049256,-151.0,0.00012329,2]
[354116069,1740255049266,-151.0,0.00012329,2]
[354116070,1740255049276,-151.0,0.00012329,2]
[354116071,1740255049286,-151.0,0.00012329,2]
[354116072,1740255049296,-151.0,0.00012329,2]
[354116073,1740255049305,-151.358127,0.00012329,2]
[354116074,1740255049315,-151.0,0.00012329,2]
[354116075,1740255049325,-151.0,0.00012329,2]
[354116076,1740255049335,-637.92,0.00012356,2]
[354116077,1740255049345,-177.16,0.00012356,2]
[354116078,1740255049354,-500.0,0.00012356,2]
[354116079,1740255049364,-780.38,0.00012356,2]
[354116080,1740255049373,-637.92,0.00012438,2]
[354116081,1740255049383,-500.0,0.00012438,2]
[354116082,1740255049392,-780.38,0.00012438,2]
[354116083,1740255049402,-404.0519811,0.00012497,2]
[354116084,1740255049412,-951.35,0.00012504,2]
[354116085,1740255049422,-637.92,0.0001252,2]
[354116086,1740255049431,-500.0,0.0001252,2]
[354116087,1740255049441,-780.38,0.0001252,2]
[354116088,1740255049450,-151.308504,0.00012543,2]
[354116089,1740255049460,-637.92,0.00012602,2]
[354116090,1740255049470,-1000.0,0.00012602,2]
[354116091,1740255049479,-500.0,0.00012602,2]
[354116092,1740255049489,-780.38,0.00012602,2]
[354116093,1740255049498,-637.92,0.00012684,2]
[354116094,1740255049509,-399.07259028,0.00012684,2]
[354116095,1740255049518,-780.38,0.00012684,2]
[354116096,1740255049527,-206.74936636,0.00012686,2]
[354116097,1740255049536,-519.17,0.00012701,2]
[354116098,1740255049546,-637.92,0.00012767,2]
[354116099,1740255049556,-780.38,0.00012767,2]
[354116100,1740255049566,-638.05568122,0.00012849,2]
[354116101,1740255049575,-780.53904246,0.00012849,2]
[354116102,1740255049584,-1000.0,0.00012876,2]
[354116103,1740255049594,-161.76212,0.00012885,2]
[354116104,1740255049604,-151.399335,0.00012885,2]
[354116105,1740255049613,-151.200114,0.00012885,2]
[354116106,1740255049623,-6364.84774044,0.00012898,2]
[354116107,1740255049632,-4200.0,0.000129,4]
[354116108,1740255049641,-200.0,0.00012913,2]
[354116109,1740255049650,-384.95159192,0.00012914,2]
[354116110,1740255049659,-200.0,0.00012917,2]
[354116111,1740255049669,-200.0,0.00012917,2]
[354116112,1740255049678,-200.0,0.00012917,2]
[354116113,1740255049687,-6364.84774044,0.00012925,2]
[354116114,1740255049696,-384.95159192,0.00012926,2]
[354116115,1740255049705,-200.0,0.00012933,2]
[354116116,1740255049715,-248.0,0.00012946,3]
[354116117,1740255049725,-6364.84774044,0.00012953,2]
[354116118,1740255049734,-200.0,0.00012953,2]
[354116119,1740255049743,-384.95159192,0.00012961,2]
[354116120,1740255049752,-6364.84774044,0.00012963,2]
[354116121,1740255049761,-548.26,0.00012967,2]
[354116122,1740255049771,-639.0,0.00012985,2]
[354116123,1740255049781,-569.0,0.00012985,2]
[354116124,1740255049790,-1788.0,0.00012985,2]
[354116125,1740255049799,-455.352,0.00012985,2]
[354116126,1740255049808,-150.0,0.00012985,2]
[354116127,1740255049817,-1009.0,0.00012985,2]
[354116128,1740255049827,-3920.0,0.00012985,2]
[354116129,1740255049836,-1110.0,0.00012985,2]
[354116130,1740255049846,-384.95159192,0.00012993,2]
[354116131,1740255049856,-200.0,0.00012999,2]
[354116132,1740255049866,-411.71,0.00013,2]
[354116133,1740255049876,-37620.93516393,0.00013,2]
[354116134,1740255049886,-151.0,0.00013,2]
[354116135,1740255049896,-151.480757,0.00013,2]
[354116136,1740255049905,-173.860644,0.00013,2]
[354116137,1740255049914,-173.860644,0.00013,2]
[354116138,1740255049923,-151.0,0.00013,2]
[354116139,1740255049932,-151.421625,0.00013,2]
[354116140,1740255049942,-323.790324,0.00013,2]
[354116141,1740255049951,-323.790324,0.00013,2]
[354116142,1740255049960,-152.004077,0.00013,2]
[354116143,1740255049969,-151.0,0.00013,2]
[354116144,1740255049978,-151.0,0.00013,2]
[354116145,1740255049992,-151.0,0.00013,2]
[354116146,1740255050002,-216.762808,0.00013,2]
[354116147,1740255050012,-151.0,0.00013,2]
[354116148,1740255050022,-151.0,0.00013,2]
[354116149,1740255050033,-151.0,0.00013,2]
[354116150,1740255050042,-213.410118,0.00013,2]
[354116151,1740255050051,-213.410118,0.00013,2]
[354116152,1740255050062,-151.0,0.00013,2]
[354116153,1740255050071,-151.0,0.00013,2]
[354116154,1740255050080,-151.0,0.00013,2]
[354116155,1740255050089,-151.0,0.00013,2]
[354116156,1740255050098,-166.310768,0.00013,2]
[354116157,1740255050108,-337.474748,0.00013,2]
[354116158,1740255050117,-337.474748,0.00013,2]
[354116159,1740255050126,-151.0,0.00013,2]
[354116160,1740255050136,-151.0,0.00013,2]
[354116161,1740255050146,-183.174854,0.00013,2]
[354116162,1740255050157,-183.174854,0.00013,2]
[354116163,1740255050167,-201.023471,0.00013,2]
[354116164,1740255050176,-201.023471,0.00013,2]
[354116165,1740255050185,-151.0,0.00013,2]
[354116166,1740255050195,-3607.742892,0.00013,2]
[354116167,1740255050205,-151.0,0.00013,2]
[354116168,1740255050214,-151.0,0.00013,2]
[354116169,1740255050223,-3607.742892,0.00013,2]
[354116170,1740255050233,-151.0,0.00013,2]
[354116171,1740255050242,-151.0,0.00013,2]
[354116172,1740255050251,-250.22015077,0.00013037,2]
[354116173,1740255050259,-206.74936636,0.00013043,2]
[354116174,1740255050269,-151.0,0.00013047,2]
[354116175,1740255050279,-151.0,0.00013047,2]
[354116176,1740255050288,-151.0,0.00013047,2]
[354116177,1740255050297,-409.503675,0.00013047,2]
[354116178,1740255050306,-151.0,0.00013047,2]
[354116179,1740255050315,-409.503675,0.00013047,2]
[354116180,1740255050323,-151.0,0.00013047,2]
[354116181,1740255050333,-151.0,0.00013047,2]
[354116182,1740255050342,-151.0,0.00013047,2]
[354116183,1740255050351,-151.0,0.00013047,2]
[354116184,1740255050361,-151.0,0.00013047,2]
[354116185,1740255050369,-151.0,0.00013047,2]
[354116186,1740255050379,-151.0,0.00013047,2]
[354116187,1740255050388,-151.0,0.00013047,2]
[354116188,1740255050399,-151.0,0.00013047,2]
[354116189,1740255050408,-17196.5153912,0.00013047,2]
[354116190,1740255050417,-151.0,0.00013047,2]
[354116191,1740255050427,-190.131182,0.00013047,2]
[354116192,1740255050436,-190.131182,0.00013047,2]
[354116193,1740255050446,-182.381664,0.00013047,2]
[354116194,1740255050456,-182.381664,0.00013047,2]
[354116195,1740255050467,-232.106477,0.00013047,2]
[354116196,1740255050476,-232.106477,0.00013047,2]
[354116197,1740255050485,-26854.30388403,0.00013047,2]
[354116198,1740255050494,-1000.0,0.0001315,2]
[354116199,1740255050504,-4703.0,0.000132,3]
[354116200,1740255050513,-273.24425686,0.00013233,2]
[354116201,1740255050522,-2000.0,0.00013299,2]
[354116202,1740255050531,-299.0820543,0.00013315,2]
[354116203,1740255050539,-150.0,0.00013315,2]
[354116204,1740255050549,-200.0,0.00013324,2]
[354116205,1740255050558,-160.0,0.00013324,2]
[354116206,1740255050566,-150.0,0.00013324,2]
[354116207,1740255050575,-150.0,0.00013324,2]
[354116208,1740255050584,-2026.0,0.00013324,2]
[354116209,1740255050593,-1274.0,0.00013324,2]
[354116210,1740255050602,-151.350932,0.00013324,2]
[354116211,1740255050612,-151.0,0.00013324,2]
[354116212,1740255050622,-1000.0,0.00013345,2]
[354116213,1740255050631,-801.53,0.00013364,2]
[354116214,1740255050639,-206.74936636,0.000134,2]
[354116215,1740255050649,-1000.0,0.00013424,2]
[354116216,1740255050658,-5014.0,0.000135,2]
[354116217,1740255050667,-5551.0,0.000135,5]
[354116218,1740255050676,-161.76212,0.0001353,2]
[354116219,1740255050685,-151.0,0.00013633,2]
[354116220,1740255050695,-248.0,0.00013642,3]
[354116221,1740255050704,-151.83784,0.00013698,2]
[354116222,1740255050713,-152.374458,0.00013698,2]
[354116223,1740255050723,-151.0,0.00013698,2]
[354116224,1740255050732,-151.0,0.00013698,2]
[354116225,1740255050741,-151.0,0.00013698,2]
[354116226,1740255050751,-151.0,0.00013698,2]
[354116227,1740255050760,-1000.0,0.00013698,2]
[354116228,1740255050769,-500.0,0.00013699,2]
[354116229,1740255050779,-500.0,0.00013699,2]
[354116230,1740255050788,-179.61,0.00013699,2]
[354116231,1740255050797,-200.0,0.00013699,2]
[354116232,1740255050807,-150.0,0.00013699,2]
[354116233,1740255050816,-16960.05,0.00013699,2]
[354116234,1740255050826,-23034.93,0.00013699,2]
[354116235,1740255050838,-19999.99,0.00013699,2]
[354116236,1740255050847,-2000.0,0.00013699,2]
[354116237,1740255050856,-151.0,0.00013699,2]
[354116238,1740255050866,-153.16253,0.00013699,2]
[354116239,1740255050875,-151.0,0.00013699,2]
[354116240,1740255050885,-206.74936636,0.00013757,2]
[354116241,1740255050894,-6890.21502126,0.000138,4]
[354116242,1740255050903,-178.6547725,0.00013972,2]
[354116243,1740255050913,-650.0,0.00014,2]
[354116244,1740255050923,-150.0,0.00014059,2]
[354116245,1740255050932,-500.0,0.00014064,2]
[354116246,1740255050941,-17196.5153912,0.00014096,2]
[354116247,1740255050951,-26854.30388403,0.00014096,2]
[354116248,1740255050960,-151.0,0.00014096,2]
[354116249,1740255050969,-3607.742892,0.00014096,2]
[354116250,1740255050978,-3607.742892,0.00014096,2]
[354116251,1740255050991,-206.74936636,0.00014114,2]
[354116252,1740255051000,-548.26,0.00014146,2]
[354116253,1740255051010,-151.0,0.000142,2]
[354116254,1740255051020,-151.0,0.000142,2]
[354116255,1740255051030,-183.174854,0.000142,2]
[354116256,1740255051040,-183.174854,0.000142,2]
[354116257,1740255051050,-201.023471,0.000142,2]
[354116258,1740255051061,-201.023471,0.000142,2]
[354116259,1740255051071,-248.0,0.00014339,3]
[354116260,1740255051080,-150.0,0.0001442,2]
[354116261,1740255051090,-206.74936636,0.00014471,2]
[354116262,1740255051100,-151.0,0.00014504,2]
[354116263,1740255051109,-151.0,0.00014504,2]
[354116264,1740255051119,-151.0,0.00014504,2]
[354116265,1740255051128,-151.0,0.00014504,2]
[354116266,1740255051138,-213.410118,0.00014504,2]
[354116267,1740255051147,-213.410118,0.00014504,2]
[354116268,1740255051158,-151.0,0.00014504,2]
[354116269,1740255051167,-151.0,0.00014504,2]
[354116270,1740255051176,-173.912584,0.00014504,2]
[354116271,1740255051186,-151.0,0.00014504,2]
[354116272,1740255051196,-337.474748,0.00014504,2]
[354116273,1740255051206,-337.474748,0.00014504,2]
[354116274,1740255051216,-150.99,0.00014504,2]
[354116275,1740255051225,-1000.0,0.00014559,2]
[354116276,1740255051234,-273.24425686,0.00014567,2]
[354116277,1740255051243,-801.53,0.00014579,2]
[354116278,1740255051254,-151.0,0.00014579,2]
[354116279,1740255051265,-190.131182,0.00014579,2]
[354116280,1740255051274,-190.131182,0.00014579,2]
[354116281,1740255051283,-232.106477,0.00014579,2]
[354116282,1740255051293,-232.106477,0.00014579,2]
[354116283,1740255051302,-1000.0,0.00014589,2]
[354116284,1740255051312,-156.29509,0.00014589,2]
[354116285,1740255051321,-151.0,0.00014589,2]
[354116286,1740255051330,-151.0,0.00014589,2]
[354116287,1740255051339,-151.0,0.00014589,2]
[354116288,1740255051348,-151.0,0.00014589,2]
[354116289,1740255051357,-151.0,0.00014589,2]
[354116290,1740255051366,-182.381664,0.00014589,2]
[354116291,1740255051376,-182.381664,0.00014589,2]
[354116292,1740255051385,-151.0,0.000146,2]
[354116293,1740255051395,-151.0,0.000146,2]
[354116294,1740255051404,-409.503675,0.000146,2]
[354116295,1740255051413,-151.0,0.000146,2]
[354116296,1740255051422,-409.503675,0.000146,2]
[354116297,1740255051432,-151.0,0.000146,2]
[354116298,1740255051441,-151.0,0.000146,2]
[354116299,1740255051450,-151.0,0.000146,2]
[354116300,1740255051459,-151.0,0.000146,2]
[354116301,1740255051468,-1000.0,0.00014612,2]
[354116302,1740255051477,-2000.0,0.00014699,2]
[354116303,1740255051487,-150.0,0.0001478,2]
[354116304,1740255051497,-151.0,0.000148,2]
[354116305,1740255051506,-151.0,0.000148,2]
[354116306,1740255051515,-173.860644,0.000148,2]
[354116307,1740255051524,-173.860644,0.000148,2]
[354116308,1740255051534,-151.0,0.000148,2]
[354116309,1740255051543,-151.0,0.000148,2]
[354116310,1740255051552,-151.0,0.000148,2]
[354116311,1740255051561,-323.790324,0.000148,2]
[354116312,1740255051570,-323.790324,0.000148,2]
[354116313,1740255051580,-323.790324,0.000148,2]
[354116314,1740255051589,-323.790324,0.000148,2]
[354116315,1740255051598,-151.0,0.000148,2]
[354116316,1740255051607,-235.073904,0.000148,2]
[354116317,1740255051617,-151.0,0.000148,2]
[354116318,1740255051626,-284.432404,0.000148,2]
[354116319,1740255051635,-151.0,0.000148,2]
[354116320,1740255051644,-151.0,0.000148,2]
[354116321,1740255051654,-213.410118,0.000148,2]
[354116322,1740255051663,-213.410118,0.000148,2]
[354116323,1740255051672,-151.0,0.000148,2]
[354116324,1740255051682,-151.0,0.000148,2]
[354116325,1740255051691,-151.0,0.000148,2]
[354116326,1740255051700,-151.0,0.000148,2]
[354116327,1740255051710,-151.0,0.000148,2]
[354116328,1740255051720,-409.503675,0.000148,2]
[354116329,1740255051730,-151.0,0.000148,2]
[354116330,1740255051740,-409.503675,0.000148,2]
[354116331,1740255051750,-151.0,0.000148,2]
[354116332,1740255051759,-151.0,0.000148,2]
[354116333,1740255051769,-151.0,0.000148,2]
[354116334,1740255051779,-166.481542,0.000148,2]
[354116335,1740255051789,-151.0,0.000148,2]
[354116336,1740255051800,-151.0,0.000148,2]
[354116337,1740255051810,-151.0,0.000148,2]
[354116338,1740255051819,-151.0,0.000148,2]
[354116339,1740255051828,-151.878976,0.000148,2]
[354116340,1740255051837,-151.0,0.000148,2]
[354116341,1740255051847,-151.0,0.000148,2]
[354116342,1740255051856,-337.474748,0.000148,2]
[354116343,1740255051865,-337.474748,0.000148,2]
[354116344,1740255051874,-190.131182,0.000148,2]
[354116345,1740255051884,-190.131182,0.000148,2]
[354116346,1740255051893,-182.381664,0.000148,2]
[354116347,1740255051903,-182.381664,0.000148,2]
[354116348,1740255051912,-232.106477,0.000148,2]
[354116349,1740255051921,-232.106477,0.000148,2]
[354116350,1740255051930,-569707.154701,0.000148,3]
[354116351,1740255051942,-183.174854,0.000148,2]
[354116352,1740255051953,-183.174854,0.000148,2]
[354116353,1740255051962,-151.0,0.000148,2]
[354116354,1740255051972,-231.561099,0.000148,2]
[354116355,1740255051982,-201.023471,0.000148,2]
[354116356,1740255051994,-201.023471,0.000148,2]
[354116357,1740255052003,-151.0,0.000148,2]
[354116358,1740255052013,-152.457262,0.000148,2]
[354116359,1740255052022,-225.232336,0.000148,2]
[354116360,1740255052032,-3607.742892,0.000148,2]
[354116361,1740255052042,-151.0,0.000148,2]
[354116362,1740255052052,-3607.742892,0.000148,2]
[354116363,1740255052063,-206.74936636,0.00014829,2]
[354116364,1740255052072,-5486.0,0.00014877,2]
[354116365,1740255052081,-300.0,0.00014899,2]
[354116366,1740255052091,-500.0,0.00014899,2]
[354116367,1740255052101,-151.0,0.000149,2]
[354116368,1740255052111,-151.0,0.000149,2]
[354116369,1740255052120,-173.860644,0.000149,2]
[354116370,1740255052130,-173.860644,0.000149,2]
[354116371,1740255052140,-151.0,0.000149,2]
[354116372,1740255052150,-252.590766,0.000149,2]
[354116373,1740255052160,-213.410118,0.000149,2]
[354116374,1740255052170,-213.410118,0.000149,2]
[354116375,1740255052180,-151.0,0.000149,2]
[354116376,1740255052191,-151.0,0.000149,2]
[354116377,1740255052201,-151.0,0.000149,2]
[354116378,1740255052211,-151.0,0.000149,2]
[354116379,1740255052221,-171.501391,0.000149,2]
[354116380,1740255052230,-409.503675,0.000149,2]
[354116381,1740255052239,-151.0,0.000149,2]
[354116382,1740255052248,-409.503675,0.000149,2]